fUST/lending_fUST_20240916
["ID","MTS","AMOUNT","RATE_DAILY","PERIOD"]
[338296404,1726486238490,-232.80369218,0.000188,2]
[338296406,1726486238500,-1000.3135178,0.000188,2]
[338296408,1726486238510,-258.53,0.00018869,3]
[338296410,1726486238519,-222.58,0.0001887,3]
[338296411,1726486238529,-667.78,0.0001887,3]
[338296413,1726486238539,-559.61365552,0.00018878,2]
[338296415,1726486238549,-500.0,0.00018878,2]
[338296417,1726486238558,-500.0,0.00018878,2]
[338296418,1726486238568,-500.0,0.00018878,2]
[338296420,1726486238578,-500.0,0.00018878,2]
[338296422,1726486238588,-500.0,0.00018878,2]
[338296424,1726486238598,-500.0,0.00018878,2]
[338296425,1726486238607,-500.0,0.00018878,2]
[338296427,1726486238618,-500.0,0.00018878,2]
[338296429,1726486238628,-500.0,0.00018878,2]
[338296431,1726486238638,-500.0,0.00018878,2]
[338296432,1726486238647,-500.0,0.00018878,2]
[338296434,1726486238656,-500.0,0.00018878,2]
[338296436,1726486238665,-500.0,0.00018878,2]
[338296438,1726486238675,-500.0,0.00018878,2]
[338296439,1726486238684,-500.0,0.00018878,2]
[338296441,1726486238694,-200.85947864,0.00018878,2]
[338296443,1726486238704,-500.0,0.00018878,2]
[338296445,1726486238715,-500.0,0.00018878,2]
[338296447,1726486238725,-500.0,0.00018878,2]
[338296448,1726486238734,-500.0,0.00018878,2]
[338296450,1726486238745,-67821.0442987,0.00018879,2]
[338296452,1726486238754,-38817.4434118,0.00018879,3]
[338296454,1726486238764,-1475.53300948,0.0001888,2]
[338296455,1726486238774,-500.0,0.00018889,2]
[338296457,1726486238784,-500.0,0.00018889,2]
[338296459,1726486238793,-375.6469307,0.00018889,2]
[338296461,1726486238802,-500.0,0.00018889,2]
[338296463,1726486238812,-233.1986994,0.00018889,2]
[338296464,1726486238822,-500.0,0.00018889,2]
[338296466,1726486238831,-500.0,0.00018889,2]
[338296468,1726486238841,-500.0,0.00018889,2]
[338296470,1726486238851,-492.47692952,0.00018889,2]
[338296472,1726486238861,-500.0,0.00018889,2]
[338296473,1726486238870,-500.0,0.00018889,2]
[338296475,1726486238880,-500.0,0.00018889,2]
[338296477,1726486238889,-500.0,0.00018889,2]
[338296478,1726486238899,-500.0,0.00018889,2]
[338296479,1726486238909,-500.0,0.00018889,2]
[338296480,1726486238918,-182.87892885,0.00018889,2]
[338296481,1726486238928,-500.0,0.00018889,2]
[338296482,1726486238938,-268.98547444,0.00018889,2]
[338296483,1726486238947,-500.0,0.00018889,2]
[338296484,1726486238957,-500.0,0.00018889,2]
[338296485,1726486238966,-500.0,0.00018889,2]
[338296486,1726486238976,-500.0,0.00018889,2]
[338296487,1726486238986,-250.0,0.00018889,2]
[338296488,1726486238996,-218.73192754,0.00018889,2]
[338296489,1726486239006,-500.0,0.00018889,2]
[338296490,1726486239015,-263.51580352,0.00018889,2]
[338296491,1726486239025,-177.08039634,0.00018889,2]
[338296492,1726486239034,-369.23957332,0.00018889,2]
[338296493,1726486239044,-500.0,0.00018889,2]
[338296494,1726486239053,-500.0,0.00018889,2]
[338296495,1726486239063,-203463.132896,0.0001889,2]
[338296496,1726486239072,-116452.330235,0.0001889,3]
[338296497,1726486239082,-156.67624292,0.0001889,2]
[338296498,1726486239091,-84464.64681775,0.000189,2]
[338296499,1726486239101,-77343.02841092,0.000189,2]
[338296500,1726486239111,-67821.0442987,0.00018949,3]
[338296501,1726486239121,-38817.4434118,0.00018949,3]
[338296502,1726486239131,-22091.62339178,0.00018959,2]
[338296503,1726486239140,-1000.0,0.00019,19]
[338296504,1726486239149,-13753.10587856,0.00019,2]
[338296505,1726486239159,-38817.4434118,0.00019018,3]
[338296506,1726486239168,-151.0,0.00019039,2]
[338296507,1726486239179,-151.0,0.00019039,2]
[338296508,1726486239189,-151.0,0.00019039,2]
[338296509,1726486239199,-150.112233,0.000191,2]
[338296510,1726486239209,-267.150928,0.000191,2]
[338296511,1726486239219,-150.112235,0.000191,2]
[338296512,1726486239228,-895.932032,0.00019145,2]
[338296513,1726486239239,-38817.4434118,0.00019158,3]
[338296515,1726486239248,-151.0,0.00019162,2]
[338296516,1726486239258,-151.0,0.00019162,2]
[338296518,1726486239268,-151.0,0.00019162,2]
[338296520,1726486239277,-308.215997,0.00019162,2]
[338296522,1726486239287,-151.0,0.00019162,2]
[338296524,1726486239296,-308.215997,0.00019162,2]
[338296526,1726486239306,-151.0,0.00019162,2]
[338296528,1726486239315,-151.0,0.00019162,2]
[338296530,1726486239325,-151.0,0.00019162,2]
[338296532,1726486239335,-151.0,0.00019162,2]
[338296534,1726486239345,-151.0,0.00019162,2]
[338296536,1726486239355,-151.0,0.00019162,2]
[338296538,1726486239365,-151.0,0.00019162,2]
[338296540,1726486239375,-151.0,0.00019162,2]
[338296542,1726486239385,-234.677504,0.00019162,2]
[338296544,1726486239395,-234.677504,0.00019162,2]
[338296546,1726486239405,-38817.4434118,0.00019168,3]
[338296548,1726486239415,-152.952042,0.00019168,2]
[338296550,1726486239425,-173.718032,0.00019168,2]
[338296552,1726486239435,-151.0,0.00019168,2]
[338296554,1726486239445,-151.0,0.00019168,2]
[338296556,1726486239455,-173.718032,0.00019168,2]
[338296558,1726486239465,-151.0,0.00019168,2]
[338296560,1726486239474,-151.0,0.00019168,2]
[338296562,1726486239485,-186.12431,0.00019168,2]
[338296564,1726486239496,-186.12431,0.00019168,2]
[338296566,1726486239506,-151.0,0.00019168,2]
[338296568,1726486239515,-151.0,0.00019168,2]
[338296571,1726486239527,-385.818707,0.00019168,2]
[338296573,1726486239537,-385.818707,0.00019168,2]
[338296575,1726486239547,-500.0,0.00019173,2]
[338296577,1726486239556,-500.0,0.00019173,2]
[338296578,1726486239566,-500.0,0.00019173,2]
[338296581,1726486239575,-175.98272928,0.00019173,2]
[338296583,1726486239584,-500.0,0.00019173,2]
[338296586,1726486239594,-510.05632153,0.00019173,2]
[338296589,1726486239604,-500.0,0.00019173,2]
[338296592,1726486239613,-500.0,0.00019173,2]
[338296595,1726486239622,-500.0,0.00019173,2]
[338296597,1726486239631,-500.0,0.00019173,2]
[338296600,1726486239640,-500.0,0.00019173,2]
[338296602,1726486239650,-500.0,0.00019173,2]
[338296606,1726486239661,-500.0,0.00019173,2]
[338296609,1726486239670,-500.0,0.00019173,2]
[338296611,1726486239681,-456.14260723,0.00019173,2]
[338296613,1726486239693,-160.0,0.00019173,2]
[338296615,1726486239703,-500.0,0.00019173,2]
[338296617,1726486239712,-500.0,0.00019173,2]
[338296619,1726486239721,-500.0,0.00019173,2]
[338296621,1726486239731,-500.25810198,0.00019173,2]
[338296623,1726486239742,-500.0,0.00019173,2]
[338296625,1726486239752,-500.0,0.00019173,2]
[338296628,1726486239763,-500.0,0.00019173,2]
[338296630,1726486239774,-151.0,0.00019173,2]
[338296632,1726486239783,-151.3934,0.00019173,2]
[338296634,1726486239792,-151.0,0.00019173,2]
[338296636,1726486239801,-151.0,0.00019173,2]
[338296638,1726486239811,-151.0,0.00019173,2]
[338296640,1726486239820,-479.818179,0.00019173,2]
[338296642,1726486239830,-479.818179,0.00019173,2]
[338296644,1726486239839,-528.579624,0.00019173,2]
[338296646,1726486239848,-426.1217,0.00019173,2]
[338296648,1726486239859,-528.579624,0.00019173,2]
[338296650,1726486239869,-426.1217,0.00019173,2]
[338296652,1726486239878,-439.787251,0.00019173,2]
[338296654,1726486239888,-874.765935,0.00019173,2]
[338296656,1726486239898,-439.787251,0.00019173,2]
[338296658,1726486239907,-874.765935,0.00019173,2]
[338296660,1726486239917,-160.0,0.00019177,3]
[338296662,1726486239926,-150.01,0.00019177,2]
[338296664,1726486239936,-1165.40381648,0.00019177,2]
[338296666,1726486239945,-160.56293787,0.00019177,2]
[338296668,1726486239955,-68978.06422297,0.00019178,5]
[338296670,1726486239965,-151.0,0.00019178,2]
[338296672,1726486239975,-151.0,0.00019178,2]
[338296674,1726486239987,-151.0,0.00019178,2]
[338296676,1726486239997,-500.0,0.00019178,2]
[338296678,1726486240007,-500.0,0.00019178,2]
[338296681,1726486240018,-500.0,0.00019178,2]
[338296683,1726486240027,-500.0,0.00019178,2]
[338296685,1726486240037,-151.0,0.00019178,2]
[338296687,1726486240047,-151.0,0.00019178,2]
[338296689,1726486240057,-151.0,0.00019178,2]
[338296691,1726486240067,-151.0,0.00019178,2]
[338296693,1726486240076,-151.0,0.00019178,2]
[338296695,1726486240086,-151.0,0.00019178,2]
[338296697,1726486240096,-151.0,0.00019178,2]
[338296699,1726486240105,-164.80222,0.00019178,2]
[338296701,1726486240115,-151.0,0.00019178,2]
[338296703,1726486240124,-500.0,0.00019178,2]
[338296705,1726486240134,-151.0,0.00019178,2]
[338296707,1726486240143,-151.0,0.00019178,2]
[338296709,1726486240153,-151.0,0.00019178,2]
[338296711,1726486240162,-151.0,0.00019178,2]
[338296713,1726486240172,-151.0,0.00019178,2]
[338296715,1726486240182,-151.0,0.00019178,2]
[338296717,1726486240191,-151.0,0.00019178,2]
[338296719,1726486240200,-151.0,0.00019178,2]
[338296721,1726486240209,-151.0,0.00019178,2]
[338296723,1726486240219,-151.0,0.00019178,2]
[338296725,1726486240228,-151.0,0.00019178,2]
[338296727,1726486240238,-151.0,0.00019178,2]
[338296729,1726486240256,-151.0,0.00019178,2]
[338296731,1726486240266,-500.0,0.00019178,2]
[338296733,1726486240275,-500.0,0.00019178,2]
[338296735,1726486240285,-500.0,0.00019178,2]
[338296737,1726486240294,-500.0,0.00019178,2]
[338296739,1726486240304,-500.0,0.00019178,2]
[338296741,1726486240313,-500.0,0.00019178,2]
[338296743,1726486240322,-500.0,0.00019178,2]
[338296745,1726486240332,-500.0,0.00019178,2]
[338296747,1726486240341,-501.02223224,0.00019178,2]
[338296749,1726486240350,-151.0,0.00019178,2]
[338296751,1726486240359,-156.348928,0.00019178,2]
[338296754,1726486240369,-151.776515,0.00019178,2]
[338296756,1726486240378,-630.96870364,0.00019178,2]
[338296757,1726486240387,-500.0,0.00019178,2]
[338296759,1726486240397,-500.0,0.00019178,2]
[338296761,1726486240407,-1357.32,0.00019178,2]
[338296763,1726486240417,-500.0,0.00019178,2]
[338296766,1726486240427,-377.20454407,0.00019178,2]
[338296768,1726486240436,-500.0,0.00019178,2]
[338296770,1726486240445,-500.0,0.00019178,2]
[338296772,1726486240454,-500.0,0.00019178,2]
[338296774,1726486240464,-500.0,0.00019178,2]
[338296776,1726486240475,-500.0,0.00019178,2]
[338296778,1726486240486,-500.0,0.00019178,2]
[338296780,1726486240498,-454.51185743,0.00019178,2]
[338296782,1726486240508,-500.0,0.00019178,2]
[338296784,1726486240518,-853.9,0.00019178,2]
[338296786,1726486240527,-1096.07,0.00019178,2]
[338296788,1726486240536,-500.0,0.00019178,2]
[338296790,1726486240546,-200.0,0.00019178,2]
[338296792,1726486240555,-500.0,0.00019178,2]
[338296794,1726486240564,-500.0,0.00019178,2]
[338296796,1726486240574,-500.0,0.00019178,2]
[338296798,1726486240584,-559.37,0.00019178,2]
[338296800,1726486240593,-500.0,0.00019178,2]
[338296802,1726486240602,-840.63,0.00019178,2]
[338296804,1726486240611,-500.0,0.00019178,2]
[338296806,1726486240621,-500.0,0.00019178,2]
[338296808,1726486240630,-755.27,0.00019178,2]
[338296810,1726486240639,-500.0,0.00019178,2]
[338296812,1726486240649,-500.0,0.00019178,2]
[338296814,1726486240658,-503.6086129,0.00019178,2]
[338296816,1726486240668,-500.0,0.00019178,2]
[338296839,1726486240877,-1631.62,0.00019178,2]
[338296841,1726486240887,-500.0,0.00019178,2]
[338296843,1726486240898,-296.03833701,0.00019178,2]
[338296846,1726486240909,-500.0,0.00019178,2]
[338296848,1726486240921,-506.05410044,0.00019178,2]
[338296850,1726486240932,-500.0,0.00019178,2]
[338296852,1726486240942,-771.08,0.00019178,2]
[338296854,1726486240953,-500.0,0.00019178,2]
[338296856,1726486240962,-519.58,0.00019178,2]
[338296858,1726486240972,-500.0,0.00019178,2]
[338296860,1726486240982,-500.0,0.00019178,2]
[338296862,1726486240994,-500.0,0.00019178,2]
[338296864,1726486241003,-517.42,0.00019178,2]
[338296866,1726486241012,-501.7016747,0.00019178,2]
[338296868,1726486241022,-500.0,0.00019178,2]
[338296870,1726486241031,-615.83,0.00019178,2]
[338296872,1726486241040,-500.0,0.00019178,2]
[338296874,1726486241049,-878.82,0.00019178,2]
[338296876,1726486241059,-500.0,0.00019178,2]
[338296878,1726486241068,-500.0,0.00019178,2]
[338296880,1726486241078,-500.0,0.00019178,2]
[338296882,1726486241087,-500.0,0.00019178,2]
[338296884,1726486241096,-506.41301119,0.00019178,2]
[338296886,1726486241106,-500.0,0.00019178,2]
[338296888,1726486241115,-1009.44,0.00019178,2]
[338296890,1726486241125,-565.57,0.00019178,2]
[338296892,1726486241134,-1750.97,0.00019178,2]
[338296894,1726486241143,-500.0,0.00019178,2]
[338296896,1726486241153,-500.0,0.00019178,2]
[338296898,1726486241162,-500.0,0.00019178,2]
[338296900,1726486241171,-500.0,0.00019178,2]
[338296901,1726486241180,-500.0,0.00019178,2]
[338296903,1726486241190,-500.0,0.00019178,2]
[338296905,1726486241199,-500.0,0.00019178,2]
[338296907,1726486241209,-500.0,0.00019178,2]
[338296909,1726486241218,-500.0,0.00019178,2]
[338296911,1726486241227,-500.0,0.00019178,2]
[338296913,1726486241236,-828.41,0.00019178,2]
[338296915,1726486241246,-500.0,0.00019178,2]
[338296917,1726486241255,-500.0,0.00019178,2]
[338296919,1726486241265,-854.38,0.00019178,2]
[338296921,1726486241274,-500.0,0.00019178,2]
[338296923,1726486241284,-500.0,0.00019178,2]
[338296925,1726486241293,-190.6527855,0.00019178,2]
[338296927,1726486241302,-500.0,0.00019178,2]
[338296929,1726486241311,-151.0,0.00019178,2]
[338296931,1726486241321,-151.0,0.00019178,2]
[338296933,1726486241330,-151.0,0.00019178,2]
[338296935,1726486241339,-500.0,0.00019178,2]
[338296937,1726486241349,-708.45,0.00019178,2]
[338296939,1726486241358,-500.0,0.00019178,2]
[338296941,1726486241367,-637.96,0.00019178,2]
[338296943,1726486241377,-501.57699895,0.00019178,2]
[338296945,1726486241386,-500.0,0.00019178,2]
[338296947,1726486241395,-224.816,0.00019178,2]
[338296949,1726486241404,-187.34767303,0.00019178,2]
[338296951,1726486241413,-500.0,0.00019178,2]
[338296953,1726486241423,-246.93040501,0.00019178,2]
[338296955,1726486241434,-500.0,0.00019178,2]
[338296957,1726486241443,-500.0,0.00019178,2]
[338296959,1726486241453,-500.0,0.00019178,2]
[338296961,1726486241462,-500.0,0.00019178,2]
[338296963,1726486241471,-588.54,0.00019178,2]
[338296965,1726486241480,-500.0,0.00019178,2]
[338296967,1726486241490,-1163.78,0.00019178,2]
[338296969,1726486241503,-205.30241293,0.00019178,2]
[338296971,1726486241512,-500.0,0.00019178,2]
[338296973,1726486241522,-500.0,0.00019178,2]
[338296975,1726486241531,-449.8630813,0.00019178,2]
[338296977,1726486241541,-1764.88,0.00019178,2]
[338296979,1726486241551,-1559.91,0.00019178,2]
[338296981,1726486241560,-151.0,0.00019178,2]
[338296983,1726486241571,-156.667341,0.00019178,2]
[338296985,1726486241580,-500.0,0.00019178,2]
[338296987,1726486241590,-246.26741315,0.00019178,2]
[338296989,1726486241599,-500.0,0.00019178,2]
[338296991,1726486241609,-503.82450348,0.00019178,2]
[338296993,1726486241619,-151.0,0.00019178,2]
[338296995,1726486241628,-151.0,0.00019178,2]
[338296996,1726486241637,-151.0,0.00019178,2]
[338296998,1726486241647,-2605.88,0.00019178,2]
[338297000,1726486241656,-500.0,0.00019178,2]
[338297002,1726486241665,-500.0,0.00019178,2]
[338297004,1726486241675,-500.0,0.00019178,2]
[338297006,1726486241684,-500.0,0.00019178,2]
[338297008,1726486241694,-500.0,0.00019178,2]
[338297010,1726486241703,-500.0,0.00019178,2]
[338297012,1726486241713,-500.0,0.00019178,2]
[338297015,1726486241727,-500.0,0.00019178,2]
[338297017,1726486241737,-500.0,0.00019178,2]
[338297019,1726486241749,-501.01192776,0.00019178,2]
[338297021,1726486241759,-170.864275,0.00019178,2]
[338297023,1726486241768,-500.0,0.00019178,2]
[338297025,1726486241778,-796.66,0.00019178,2]
[338297027,1726486241787,-500.0,0.00019178,2]
[338297029,1726486241797,-2039.39,0.00019178,2]
[338297031,1726486241806,-500.0,0.00019178,2]
[338297033,1726486241816,-500.0,0.00019178,2]
[338297035,1726486241825,-776.93,0.00019178,2]
[338297036,1726486241834,-889.5,0.00019178,2]
[338297039,1726486241844,-500.0,0.00019178,2]
[338297041,1726486241853,-500.0,0.00019178,2]
[338297043,1726486241863,-500.0,0.00019178,2]
[338297045,1726486241873,-500.0,0.00019178,2]
[338297046,1726486241882,-500.0,0.00019178,2]
[338297048,1726486241892,-500.0,0.00019178,2]
[338297051,1726486241903,-500.0,0.00019178,2]
[338297052,1726486241912,-500.0,0.00019178,2]
[338297054,1726486241921,-500.0,0.00019178,2]
[338297056,1726486241931,-500.0,0.00019178,2]
[338297058,1726486241941,-509.40659585,0.00019178,2]
[338297060,1726486241950,-596.5849349,0.00019178,2]
[338297168,1726486243148,-129.7550651,0.00019178,2]
[338297170,1726486243158,-500.0,0.00019178,2]
[338297172,1726486243168,-500.0,0.00019178,2]
[338297174,1726486243178,-207.575041,0.00019178,2]
[338297176,1726486243188,-207.575041,0.00019178,2]
[338297178,1726486243199,-207.575041,0.00019178,2]
[338297180,1726486243208,-207.575041,0.00019178,2]
[338297182,1726486243218,-207.575041,0.00019178,2]
[338297184,1726486243227,-500.0,0.00019178,2]
[338297186,1726486243236,-207.575041,0.00019178,2]
[338297188,1726486243246,-500.0,0.00019178,2]
[338297190,1726486243255,-517.54,0.00019178,2]
[338297192,1726486243266,-500.0,0.00019178,2]
[338297194,1726486243275,-207.575041,0.00019178,2]
[338297196,1726486243284,-207.575041,0.00019178,2]
[338297197,1726486243294,-207.575041,0.00019178,2]
[338297199,1726486243303,-679.84,0.00019178,2]
[338297201,1726486243313,-207.575041,0.00019178,2]
[338297203,1726486243322,-207.575041,0.00019178,2]
[338297205,1726486243332,-207.575041,0.00019178,2]
[338297207,1726486243341,-500.45656717,0.00019178,2]
[338297209,1726486243351,-543.35,0.00019178,2]
[338297211,1726486243361,-1264.06,0.00019178,2]
[338297212,1726486243371,-543.35,0.00019178,2]
[338297214,1726486243380,-543.35,0.00019178,2]
[338297216,1726486243390,-543.35,0.00019178,2]
[338297218,1726486243399,-500.0,0.00019178,2]
[338297220,1726486243409,-543.35,0.00019178,2]
[338297222,1726486243418,-543.35,0.00019178,2]
[338297224,1726486243428,-543.35,0.00019178,2]
[338297226,1726486243437,-543.35,0.00019178,2]
[338297228,1726486243446,-543.35,0.00019178,2]
[338297230,1726486243455,-543.35,0.00019178,2]
[338297231,1726486243464,-543.35,0.00019178,2]
[338297233,1726486243474,-543.35,0.00019178,2]
[338297235,1726486243484,-500.0,0.00019178,2]
[338297237,1726486243499,-543.35,0.00019178,2]
[338297239,1726486243509,-543.35,0.00019178,2]
[338297241,1726486243518,-543.35,0.00019178,2]
[338297243,1726486243528,-500.0,0.00019178,2]
[338297245,1726486243537,-543.35,0.00019178,2]
[338297247,1726486243547,-543.35,0.00019178,2]
[338297249,1726486243555,-543.35,0.00019178,2]
[338297250,1726486243564,-543.35,0.00019178,2]
[338297252,1726486243575,-543.35,0.00019178,2]
[338297254,1726486243585,-543.35,0.00019178,2]
[338297256,1726486243594,-543.35,0.00019178,2]
[338297258,1726486243604,-543.35,0.00019178,2]
[338297260,1726486243614,-543.52380862,0.00019178,2]
[338297262,1726486243624,-500.0,0.00019178,2]
[338297264,1726486243633,-196.62552816,0.00019178,2]
[338297266,1726486243642,-500.0,0.00019178,2]
[338297268,1726486243651,-500.0,0.00019178,2]
[338297270,1726486243661,-500.0,0.00019178,2]
[338297272,1726486243670,-502.90992663,0.00019178,2]
[338297274,1726486243679,-500.0,0.00019178,2]
[338297275,1726486243688,-500.0,0.00019178,2]
[338297277,1726486243697,-500.0,0.00019178,2]
[338297279,1726486243706,-500.0,0.00019178,2]
[338297281,1726486243715,-500.0,0.00019178,2]
[338297283,1726486243725,-500.0,0.00019178,2]
[338297285,1726486243735,-500.0,0.00019178,2]
[338297287,1726486243747,-500.0,0.00019178,2]
[338297289,1726486243757,-500.0,0.00019178,2]
[338297291,1726486243767,-500.0,0.00019178,2]
[338297293,1726486243777,-500.0,0.00019178,2]
[338297295,1726486243787,-927.06,0.00019178,2]
[338297297,1726486243796,-500.0,0.00019178,2]
[338297299,1726486243806,-500.0,0.00019178,2]
[338297301,1726486243817,-500.0,0.00019178,2]
[338297303,1726486243826,-500.0,0.00019178,2]
[338297304,1726486243836,-500.0,0.00019178,2]
[338297306,1726486243846,-500.0,0.00019178,2]
[338297308,1726486243855,-500.0,0.00019178,2]
[338297310,1726486243864,-500.0,0.00019178,2]
[338297312,1726486243873,-500.0,0.00019178,2]
[338297314,1726486243883,-500.0,0.00019178,2]
[338297316,1726486243892,-500.0,0.00019178,2]
[338297318,1726486243901,-445.43905679,0.00019178,2]
[338297320,1726486243910,-500.0,0.00019178,2]
[338297322,1726486243919,-500.0,0.00019178,2]
[338297324,1726486243929,-500.0,0.00019178,2]
[338297326,1726486243938,-500.0,0.00019178,2]
[338297327,1726486243947,-500.0,0.00019178,2]
[338297329,1726486243957,-500.0,0.00019178,2]
[338297331,1726486243966,-500.0,0.00019178,2]
[338297333,1726486243976,-595.75,0.00019178,2]
[338297335,1726486243985,-500.0,0.00019178,2]
[338297337,1726486243996,-500.0,0.00019178,2]
[338297339,1726486244005,-500.0,0.00019178,2]
[338297341,1726486244015,-500.0,0.00019178,2]
[338297343,1726486244025,-500.0,0.00019178,2]
[338297345,1726486244035,-957.85,0.00019178,2]
[338297347,1726486244046,-500.0,0.00019178,2]
[338297349,1726486244057,-500.0,0.00019178,2]
[338297351,1726486244066,-500.0,0.00019178,2]
[338297353,1726486244076,-500.0,0.00019178,2]
[338297355,1726486244085,-500.0,0.00019178,2]
[338297356,1726486244095,-500.0,0.00019178,2]
[338297358,1726486244104,-513.73,0.00019178,2]
[338297360,1726486244113,-500.0,0.00019178,2]
[338297362,1726486244122,-500.0,0.00019178,2]
[338297364,1726486244132,-500.0,0.00019178,2]
[338297366,1726486244141,-500.0,0.00019178,2]
[338297368,1726486244150,-500.0,0.00019178,2]
[338297370,1726486244160,-500.0,0.00019178,2]
[338297372,1726486244169,-151.0,0.00019178,2]
[338297374,1726486244179,-151.0,0.00019178,2]
[338297375,1726486244189,-151.0,0.00019178,2]
[338297377,1726486244199,-500.0,0.00019178,2]
[338297379,1726486244208,-500.0,0.00019178,2]
[338297381,1726486244218,-500.0,0.00019178,2]
[338297383,1726486244227,-644.27932226,0.00019178,2]
[338297385,1726486244237,-500.0,0.00019178,2]
[338297387,1726486244247,-987.9,0.00019178,2]
[338297389,1726486244256,-151.0,0.00019178,2]
[338297391,1726486244265,-151.0,0.00019178,2]
[338297393,1726486244275,-703.37,0.00019178,2]
[338297394,1726486244284,-151.0,0.00019178,2]
[338297396,1726486244293,-151.0,0.00019178,2]
[338297398,1726486244302,-151.0,0.00019178,2]
[338297400,1726486244311,-1560.98,0.00019178,2]
[338297402,1726486244321,-291.824208,0.00019178,2]
[338297404,1726486244330,-500.0,0.00019178,2]
[338297406,1726486244339,-500.0,0.00019178,2]
[338297408,1726486244348,-501.6472655,0.00019178,2]
[338297410,1726486244357,-500.0,0.00019178,2]
[338297412,1726486244366,-500.0,0.00019178,2]
[338297414,1726486244375,-500.0,0.00019178,2]
[338297416,1726486244385,-500.0,0.00019178,2]
[338297418,1726486244394,-506.19130394,0.00019178,2]
[338297420,1726486244403,-490.79038421,0.00019178,2]
[338297422,1726486244414,-500.0,0.00019178,2]
[338297424,1726486244423,-500.0,0.00019178,2]
[338297426,1726486244433,-595.32,0.00019178,2]
[338297428,1726486244442,-500.0,0.00019178,2]
[338297430,1726486244451,-684.46,0.00019178,2]
[338297431,1726486244460,-613.78,0.00019178,2]
[338297433,1726486244469,-749.44,0.00019178,2]
[338297435,1726486244478,-500.0,0.00019178,2]
[338297437,1726486244488,-1736.59,0.00019178,2]
[338297439,1726486244498,-500.0,0.00019178,2]
[338297441,1726486244510,-500.0,0.00019178,2]
[338297443,1726486244519,-500.0,0.00019178,2]
[338297445,1726486244529,-575.15,0.00019178,2]
[338297447,1726486244538,-224.96285474,0.00019178,2]
[338297449,1726486244547,-500.0,0.00019178,2]
[338297451,1726486244557,-500.0,0.00019178,2]
[338297453,1726486244566,-568.4,0.00019178,2]
[338297455,1726486244576,-294.92487963,0.00019178,2]
[338297457,1726486244586,-500.0,0.00019178,2]
[338297459,1726486244595,-626.76,0.00019178,2]
[338297461,1726486244604,-500.0,0.00019178,2]
[338297463,1726486244613,-500.0,0.00019178,2]
[338297465,1726486244622,-500.0,0.00019178,2]
[338297467,1726486244631,-582.55,0.00019178,2]
[338297469,1726486244640,-500.0,0.00019178,2]
[338297470,1726486244649,-501.81014544,0.00019178,2]
[338297472,1726486244659,-2525.52,0.00019178,2]
[338297474,1726486244668,-684.21,0.00019178,2]
[338297476,1726486244677,-1907.98,0.00019178,2]
[338297478,1726486244686,-500.0,0.00019178,2]
[338297480,1726486244695,-823.45,0.00019178,2]
[338297482,1726486244705,-500.0,0.00019178,2]